[Event "*** Titled Tuesday 3|2 Blitz"]
[Site "Chess.com"]
[Date "2015.12.01"]
[Round "5"]
[White "NguyenDucHoa"]
[Black "Tesla37"]
[Result "0-1"]
[WhiteElo "2361"]
[BlackElo "2536"]
[TimeControl "180+2"]
[EndTime "12:03:33 PST"]
[Termination "Tesla37 won on time"]

1. e4 {[%clk 0:02:59]} 1... c5 {[%clk 0:02:59.9]} 2. Nf3 {[%clk 0:02:59.8]} 2...
e6 {[%clk 0:03:01.1]} 3. d4 {[%clk 0:03:00.9]} 3... cxd4 {[%clk 0:03:02.3]} 4.
Nxd4 {[%clk 0:03:02.8]} 4... Nc6 {[%clk 0:03:03.6]} 5. Nc3 {[%clk 0:03:02.8]}
5... Qc7 {[%clk 0:03:05.1]} 6. Be3 {[%clk 0:03:01]} 6... a6 {[%clk 0:03:05.6]}
7. Qf3 {[%clk 0:03:01.6]} 7... d6 {[%clk 0:03:03.8]} 8. O-O-O {[%clk 0:02:51.4]}
8... Bd7 {[%clk 0:03:04.1]} 9. Qg3 {[%clk 0:02:49.9]} 9... Nf6 {[%clk 0:03:01]}
10. f4 {[%clk 0:02:46.1]} 10... b5 {[%clk 0:03:00.7]} 11. e5 {[%clk 0:02:14.3]}
11... dxe5 {[%clk 0:03:00.5]} 12. fxe5 {[%clk 0:02:14.4]} 12... b4 {[%clk
0:02:25.9]} 13. exf6 {[%clk 0:01:54.3]} 13... Qxg3 {[%clk 0:02:26]} 14. hxg3
{[%clk 0:01:55.6]} 14... bxc3 {[%clk 0:02:27.3]} 15. fxg7 {[%clk 0:01:31.4]}
15... cxb2+ {[%clk 0:02:26.2]} 16. Kxb2 {[%clk 0:01:30.4]} 16... Bxg7 {[%clk
0:02:26.6]} 17. c3 {[%clk 0:01:31.6]} 17... Ne5 {[%clk 0:02:23.8]} 18. Nf3
{[%clk 0:01:12.6]} 18... Rb8+ {[%clk 0:02:23.4]} 19. Kc1 {[%clk 0:01:02.9]}
19... Ng4 {[%clk 0:02:21.8]} 20. Bd4 {[%clk 0:00:58.3]} 20... e5 {[%clk
0:02:22.8]} 21. Re1 {[%clk 0:00:54.2]} 21... Bf5 {[%clk 0:01:50.9]} 22. Nd2
{[%clk 0:00:17.6]} 22... O-O {[%clk 0:01:47.7]} 23. Bg1 {[%clk 0:00:13]} 23...
Rfc8 {[%clk 0:01:44.2]} 24. c4 {[%clk 0:00:11.3]} 24... e4 {[%clk 0:01:31.7]}
25. Rh5 {[%clk 0:00:10.9]} 25... Bg6 {[%clk 0:01:25.6]} 26. Rg5 {[%clk
0:00:10.7]} 26... Ne5 {[%clk 0:01:21]} 27. Kd1 {[%clk 0:00:06]} 27... Rd8 {[%clk
0:01:18.9]} 28. Be3 {[%clk 0:00:03.6]} 28... h6 {[%clk 0:01:08.3]} 29. Rxg6
{[%clk 0:00:02.8]} 29... fxg6 {[%clk 0:01:07.9]} 30. Kc2 {[%clk 0:00:03.9]}
30... Nd3 {[%clk 0:01:06.6]} 31. Rb1 {[%clk 0:00:04.1]} 31... Nb4+ {[%clk
0:01:02.8]} 32. Kd1 {[%clk 0:00:02.8]} 32... Nxa2 {[%clk 0:01:03.4]} 33. Rxb8
{[%clk 0:00:03.2]} 33... Nc3+ {[%clk 0:00:55.8]} 34. Kc2 {[%clk 0:00:04.5]}
34... Rxb8 {[%clk 0:00:57.2]} 35. c5 {[%clk 0:00:06.4]} 35... Nd5 {[%clk
0:00:54.8]} 36. Bc4 {[%clk 0:00:06.5]} 36... Rd8 {[%clk 0:00:53.7]} 37. Nxe4
{[%clk 0:00:07]} 37... Kf8 {[%clk 0:00:50.8]} 38. Bd2 {[%clk 0:00:08.3]} 38...
Ke7 {[%clk 0:00:45]} 39. Ba5 {[%clk 0:00:09.3]} 39... Ne3+ {[%clk 0:00:43.5]}
40. Kb3 {[%clk 0:00:03.1]} 40... Rd1 {[%clk 0:00:37.8]} 0-1

[Event "*** Titled Tuesday 3|2 Blitz"]
[Site "Chess.com"]
[Date "2015.12.01"]
[Round "5"]
[White "Gergo85"]
[Black "HansCoolNiemann"]
[Result "1-0"]
[WhiteElo "2344"]
[BlackElo "2177"]
[TimeControl "180+2"]
[EndTime "12:03:35 PST"]
[Termination "Gergo85 won by checkmate"]

1. e4 {[%clk 0:03:01.9]} 1... e6 {[%clk 0:02:58.4]} 2. d4 {[%clk 0:03:00.5]}
2... d5 {[%clk 0:02:57.4]} 3. Nc3 {[%clk 0:03:01.5]} 3... Nf6 {[%clk 0:02:56.7]}
4. e5 {[%clk 0:03:02.6]} 4... Nfd7 {[%clk 0:02:56.5]} 5. f4 {[%clk 0:03:03.7]}
5... c5 {[%clk 0:02:57.9]} 6. Be3 {[%clk 0:03:05.2]} 6... Nc6 {[%clk 0:02:59.2]}
7. Nf3 {[%clk 0:03:06.1]} 7... cxd4 {[%clk 0:02:59.3]} 8. Nxd4 {[%clk
0:03:06.6]} 8... Bc5 {[%clk 0:03:00.6]} 9. Qd2 {[%clk 0:03:05.5]} 9... O-O
{[%clk 0:03:00.4]} 10. O-O-O {[%clk 0:03:06.4]} 10... a6 {[%clk 0:03:01.8]} 11.
Qf2 {[%clk 0:03:03.8]} 11... Bxd4 {[%clk 0:03:00.7]} 12. Bxd4 {[%clk 0:03:04.8]}
12... b5 {[%clk 0:03:02.6]} 13. Ne2 {[%clk 0:03:05]} 13... Qa5 {[%clk
0:02:58.5]} 14. Kb1 {[%clk 0:03:03.7]} 14... Bb7 {[%clk 0:02:58.6]} 15. Ng3
{[%clk 0:03:04.5]} 15... Rac8 {[%clk 0:02:56.8]} 16. Bc3 {[%clk 0:02:50.2]}
16... b4 {[%clk 0:02:41.3]} 17. Be1 {[%clk 0:02:50.8]} 17... Nb6 {[%clk
0:02:28.7]} 18. Nh5 {[%clk 0:02:42.4]} 18... Qa4 {[%clk 0:01:54]} 19. Bd3 {[%clk
0:02:36.2]} 19... Nd7 {[%clk 0:01:48.8]} 20. Qg3 {[%clk 0:02:16.6]} 20... g6
{[%clk 0:01:44.9]} 21. Nf6+ {[%clk 0:02:17.2]} 21... Nxf6 {[%clk 0:01:44.7]} 22.
exf6 {[%clk 0:02:19.1]} 22... Kh8 {[%clk 0:01:45.6]} 23. Qg5 {[%clk 0:02:12.2]}
23... Nd4 {[%clk 0:01:45.5]} 24. Rc1 {[%clk 0:01:58.3]} 24... Rc5 {[%clk
0:01:35.9]} 25. Bxb4 {[%clk 0:00:55.5]} 25... Qxb4 {[%clk 0:01:32.6]} 26. c3
{[%clk 0:00:56.8]} 26... Qa4 {[%clk 0:01:29]} 27. cxd4 {[%clk 0:00:54.4]} 27...
Rxc1+ {[%clk 0:01:24]} 28. Rxc1 {[%clk 0:00:56.3]} 28... Qxd4 {[%clk 0:01:25.3]}
29. Bf1 {[%clk 0:00:57.3]} 29... Qe4+ {[%clk 0:01:25.3]} 30. Ka1 {[%clk
0:00:57.5]} 30... d4 {[%clk 0:01:25.5]} 31. Qe5 {[%clk 0:00:45.8]} 31... Qxe5
{[%clk 0:01:20.5]} 32. fxe5 {[%clk 0:00:47.7]} 32... h5 {[%clk 0:01:20.6]} 33.
b4 {[%clk 0:00:37.7]} 33... Rd8 {[%clk 0:01:18.7]} 34. Rc7 {[%clk 0:00:36.9]}
34... Be4 {[%clk 0:01:18.5]} 35. Rxf7 {[%clk 0:00:17.2]} 35... d3 {[%clk
0:01:18.1]} 36. Bxd3 {[%clk 0:00:18.7]} 36... Bxd3 {[%clk 0:01:18.1]} 37. Re7
{[%clk 0:00:18.7]} 37... Bf5 {[%clk 0:01:18.4]} 38. Kb2 {[%clk 0:00:19]} 38...
Kg8 {[%clk 0:01:15.9]} 39. Kc3 {[%clk 0:00:19.6]} 39... Rf8 {[%clk 0:01:12.7]}
40. Ra7 {[%clk 0:00:19.4]} 40... Rf7 {[%clk 0:01:12.3]} 41. Rxa6 {[%clk
0:00:20.4]} 41... Rd7 {[%clk 0:01:10.5]} 42. Rd6 {[%clk 0:00:19]} 42... Rxd6
{[%clk 0:01:09.6]} 43. exd6 {[%clk 0:00:20.9]} 43... e5 {[%clk 0:01:11.5]} 44.
b5 {[%clk 0:00:22]} 44... Kf7 {[%clk 0:01:11.8]} 45. b6 {[%clk 0:00:23.4]} 45...
Bc8 {[%clk 0:01:05.6]} 46. d7 {[%clk 0:00:24.7]} 46... Bxd7 {[%clk 0:01:05.9]}
47. b7 {[%clk 0:00:26.1]} 47... Kxf6 {[%clk 0:01:06.2]} 48. b8=Q {[%clk
0:00:28]} 48... Bf5 {[%clk 0:01:07.1]} 49. Qd6+ {[%clk 0:00:28.9]} 49... Kg5
{[%clk 0:01:08.3]} 50. Qxe5 {[%clk 0:00:29.3]} 50... h4 {[%clk 0:01:08.2]} 51.
a4 {[%clk 0:00:29.7]} 51... Kg4 {[%clk 0:01:07.7]} 52. a5 {[%clk 0:00:30.4]}
52... Bc8 {[%clk 0:01:06.7]} 53. h3# {[%clk 0:00:27.6]} 1-0

[Event "*** Titled Tuesday 3|2 Blitz"]
[Site "Chess.com"]
[Date "2015.12.01"]
[Round "5"]
[White "rikyshi"]
[Black "StellarChessPro"]
[Result "1-0"]
[WhiteElo "2134"]
[BlackElo "2256"]
[TimeControl "180+2"]
[EndTime "12:03:45 PST"]
[Termination "rikyshi won by resignation"]

1. e4 {[%clk 0:03:01.9]} 1... c6 {[%clk 0:03:00.7]} 2. d4 {[%clk 0:03:01.1]}
2... d5 {[%clk 0:03:02.6]} 3. Nc3 {[%clk 0:03:01.4]} 3... dxe4 {[%clk
0:03:02.8]} 4. Nxe4 {[%clk 0:03:03.3]} 4... Nf6 {[%clk 0:03:04.4]} 5. Nxf6+
{[%clk 0:03:03.8]} 5... gxf6 {[%clk 0:03:06.3]} 6. Ne2 {[%clk 0:03:00.2]} 6...
Nd7 {[%clk 0:03:02.8]} 7. Ng3 {[%clk 0:02:59.4]} 7... e6 {[%clk 0:03:03.4]} 8.
c3 {[%clk 0:02:44.4]} 8... f5 {[%clk 0:03:04.4]} 9. Bf4 {[%clk 0:02:34.3]} 9...
Be7 {[%clk 0:02:48.2]} 10. Be2 {[%clk 0:02:04.5]} 10... Bg5 {[%clk 0:02:47.6]}
11. Bd6 {[%clk 0:02:03.8]} 11... Nb6 {[%clk 0:02:46.6]} 12. Ba3 {[%clk
0:02:04.7]} 12... Nd5 {[%clk 0:02:46.7]} 13. Bf3 {[%clk 0:01:58.4]} 13... Be7
{[%clk 0:02:47.7]} 14. Bxd5 {[%clk 0:01:58.5]} 14... Qxd5 {[%clk 0:02:46.5]} 15.
Bxe7 {[%clk 0:01:58.9]} 15... Kxe7 {[%clk 0:02:48.4]} 16. Qe2 {[%clk 0:01:52.4]}
16... Qxg2 {[%clk 0:02:37.7]} 17. Nxf5+ {[%clk 0:01:49.9]} 17... Kd7 {[%clk
0:02:30.6]} 18. Ng3 {[%clk 0:01:48.4]} 18... Qd5 {[%clk 0:02:31.1]} 19. Ne4
{[%clk 0:01:47.4]} 19... Kc7 {[%clk 0:02:25.5]} 20. O-O-O {[%clk 0:01:43.5]}
20... Qxa2 {[%clk 0:02:25.6]} 21. Nc5 {[%clk 0:01:37]} 21... Qd5 {[%clk
0:02:23.1]} 22. Rhg1 {[%clk 0:01:36.1]} 22... b6 {[%clk 0:02:24.1]} 23. Nd3
{[%clk 0:01:35.6]} 23... a5 {[%clk 0:02:24]} 24. Rg7 {[%clk 0:01:32.4]} 24...
Bd7 {[%clk 0:02:02.1]} 25. Rxf7 {[%clk 0:01:27.6]} 25... Raf8 {[%clk 0:01:57.1]}
26. Rxf8 {[%clk 0:01:13.5]} 26... Rxf8 {[%clk 0:01:59]} 27. f4 {[%clk
0:01:14.5]} 27... a4 {[%clk 0:01:54.1]} 28. Rg1 {[%clk 0:01:13.6]} 28... a3
{[%clk 0:01:54.3]} 29. bxa3 {[%clk 0:01:08.9]} 29... Qc4 {[%clk 0:01:48.6]} 30.
Qc2 {[%clk 0:01:01.1]} 30... Be8 {[%clk 0:01:04.8]} 31. Rg7+ {[%clk 0:00:58.1]}
31... Kb8 {[%clk 0:01:04.2]} 32. Qb2 {[%clk 0:00:48.2]} 32... b5 {[%clk
0:00:56.1]} 33. Qb4 {[%clk 0:00:47.6]} 33... Qxd3 {[%clk 0:00:34.6]} 34. Qxf8
{[%clk 0:00:45.9]} 34... Qxc3+ {[%clk 0:00:35.2]} 35. Kd1 {[%clk 0:00:47]} 35...
Qxd4+ {[%clk 0:00:29.5]} 36. Ke2 {[%clk 0:00:47.4]} 36... Qb2+ {[%clk
0:00:25.3]} 37. Kf1 {[%clk 0:00:46.4]} 37... Qc1+ {[%clk 0:00:25.6]} 38. Kf2
{[%clk 0:00:47.1]} 38... Qd2+ {[%clk 0:00:26.7]} 39. Kg3 {[%clk 0:00:48.2]}
39... Qe3+ {[%clk 0:00:27.5]} 40. Kh4 {[%clk 0:00:48.3]} 40... Qf2+ {[%clk
0:00:27.5]} 41. Kg5 {[%clk 0:00:46.9]} 41... Qg2+ {[%clk 0:00:26.9]} 42. Kf6
{[%clk 0:00:46.9]} 42... Qb2+ {[%clk 0:00:27.6]} 43. Ke7 {[%clk 0:00:46.2]}
43... Qxa3+ {[%clk 0:00:28.8]} 44. Kxe8 {[%clk 0:00:47.6]} 44... Qxf8+ {[%clk
0:00:26.7]} 45. Kxf8 {[%clk 0:00:48.9]} 45... b4 {[%clk 0:00:27.2]} 46. Ke7
{[%clk 0:00:42.8]} 46... Kc7 {[%clk 0:00:28.2]} 47. Kxe6+ {[%clk 0:00:43.1]}
47... Kb6 {[%clk 0:00:28.8]} 48. f5 {[%clk 0:00:44.4]} 48... b3 {[%clk
0:00:29.7]} 49. Rg3 {[%clk 0:00:44.3]} 49... c5 {[%clk 0:00:29.5]} 50. Rxb3+
{[%clk 0:00:45.2]} 50... Kc6 {[%clk 0:00:31.4]} 51. f6 {[%clk 0:00:46.6]} 1-0

[Event "*** Titled Tuesday 3|2 Blitz"]
[Site "Chess.com"]
[Date "2015.12.01"]
[Round "5"]
[White "1stSecond"]
[Black "ChadaevNikolay"]
[Result "1-0"]
[WhiteElo "2426"]
[BlackElo "2543"]
[TimeControl "180+2"]
[EndTime "12:04:24 PST"]
[Termination "1stSecond won by checkmate"]

1. d4 {[%clk 0:03:01.9]} 1... Nf6 {[%clk 0:03:00.7]} 2. c4 {[%clk 0:03:03]} 2...
g6 {[%clk 0:03:02.1]} 3. Nc3 {[%clk 0:03:04.3]} 3... Bg7 {[%clk 0:03:03.6]} 4.
e4 {[%clk 0:03:05.5]} 4... O-O {[%clk 0:03:05.1]} 5. Nf3 {[%clk 0:03:07.1]} 5...
d6 {[%clk 0:03:05.7]} 6. h3 {[%clk 0:03:08.6]} 6... Nc6 {[%clk 0:03:04.7]} 7.
Be3 {[%clk 0:03:06.8]} 7... e5 {[%clk 0:03:01.2]} 8. d5 {[%clk 0:03:08]} 8...
Nd4 {[%clk 0:02:59.9]} 9. Nxd4 {[%clk 0:03:04.1]} 9... exd4 {[%clk 0:03:00.5]}
10. Bxd4 {[%clk 0:03:06]} 10... Re8 {[%clk 0:02:38.4]} 11. Bd3 {[%clk
0:02:54.6]} 11... Nh5 {[%clk 0:02:27.9]} 12. Bxg7 {[%clk 0:02:53.9]} 12... Kxg7
{[%clk 0:02:29.8]} 13. Qd2 {[%clk 0:02:48.2]} 13... Qf6 {[%clk 0:02:28.1]} 14.
g3 {[%clk 0:02:48.3]} 14... Qd4 {[%clk 0:02:23.7]} 15. O-O-O {[%clk 0:02:45.5]}
15... Nf6 {[%clk 0:02:24]} 16. f4 {[%clk 0:02:39.1]} 16... Bd7 {[%clk
0:02:24.1]} 17. g4 {[%clk 0:02:36.2]} 17... a6 {[%clk 0:02:05.1]} 18. f5 {[%clk
0:02:14.5]} 18... b5 {[%clk 0:02:04.4]} 19. g5 {[%clk 0:02:15.4]} 19... Nh5
{[%clk 0:02:01.7]} 20. f6+ {[%clk 0:02:16.3]} 20... Kg8 {[%clk 0:02:01.2]} 21.
cxb5 {[%clk 0:02:17.5]} 21... axb5 {[%clk 0:01:45.7]} 22. Bxb5 {[%clk
0:02:18.1]} 22... Qxd2+ {[%clk 0:01:46.4]} 23. Rxd2 {[%clk 0:02:05.4]} 23...
Bxb5 {[%clk 0:01:44.5]} 24. Nxb5 {[%clk 0:02:06.2]} 24... Rxa2 {[%clk
0:01:45.1]} 25. Kb1 {[%clk 0:02:05.6]} 25... Ra5 {[%clk 0:01:25]} 26. Nxc7
{[%clk 0:02:06]} 26... Rxe4 {[%clk 0:01:24.7]} 27. Rc1 {[%clk 0:02:04.3]} 27...
h6 {[%clk 0:01:24]} 28. Rc6 {[%clk 0:01:52.1]} 28... hxg5 {[%clk 0:01:21.7]} 29.
b3 {[%clk 0:01:27.1]} 29... Re3 {[%clk 0:01:08.7]} 30. Kb2 {[%clk 0:01:26.9]}
30... Nxf6 {[%clk 0:01:08]} 31. Rxd6 {[%clk 0:01:25.8]} 31... Ne4 {[%clk
0:01:08.8]} 32. Rd8+ {[%clk 0:01:26.8]} 32... Kh7 {[%clk 0:01:09.3]} 33. Rc2
{[%clk 0:01:17.1]} 33... Nc5 {[%clk 0:01:02.5]} 34. b4 {[%clk 0:01:13.2]} 34...
Rb3+ {[%clk 0:01:02.5]} 35. Kc1 {[%clk 0:01:13.4]} 35... Rxb4 {[%clk 0:01:03.3]}
36. d6 {[%clk 0:01:13.9]} 36... Rd4 {[%clk 0:01:02.8]} 37. Ne8 {[%clk
0:01:09.3]} 37... Nd3+ {[%clk 0:00:39.2]} 38. Kd2 {[%clk 0:01:06.8]} 38... Nf4+
{[%clk 0:00:37]} 39. Kc3 {[%clk 0:00:58.4]} 39... Rd3+ {[%clk 0:00:36.2]} 40.
Kb4 {[%clk 0:00:57.9]} 40... Ra1 {[%clk 0:00:30.4]} 41. Rc7 {[%clk 0:00:45.4]}
41... Rb1+ {[%clk 0:00:25.9]} 42. Kc4 {[%clk 0:00:46.4]} 42... Rc1+ {[%clk
0:00:23.7]} 43. Kb5 {[%clk 0:00:47.7]} 43... Rb1+ {[%clk 0:00:23.8]} 44. Kc6
{[%clk 0:00:49.1]} 44... Rc1+ {[%clk 0:00:22.9]} 45. Kb7 {[%clk 0:00:48.9]}
45... Rb1+ {[%clk 0:00:21.4]} 46. Kc8 {[%clk 0:00:50.2]} 46... Ne6 {[%clk
0:00:20.1]} 47. Rxf7+ {[%clk 0:00:50.8]} 47... Kh6 {[%clk 0:00:21.3]} 48. Nf6
{[%clk 0:00:50.3]} 48... g4 {[%clk 0:00:19.9]} 49. h4 {[%clk 0:00:50]} 49... g5
{[%clk 0:00:19.3]} 50. h5 {[%clk 0:00:49.6]} 50... Rc3+ {[%clk 0:00:18.7]} 51.
Kd7 {[%clk 0:00:50.4]} 51... Nc5+ {[%clk 0:00:18.9]} 52. Ke7 {[%clk 0:00:51.7]}
52... Rb7+ {[%clk 0:00:18.8]} 53. d7 {[%clk 0:00:51.4]} 53... Re3+ {[%clk
0:00:19.3]} 54. Kf8 {[%clk 0:00:51.7]} 54... Ne6+ {[%clk 0:00:19.7]} 55. Kg8
{[%clk 0:00:53.3]} 55... Nxd8 {[%clk 0:00:14.6]} 56. Rh7# {[%clk 0:00:54.1]} 1-0

[Event "*** Titled Tuesday 3|2 Blitz"]
[Site "Chess.com"]
[Date "2015.12.01"]
[Round "5"]
[White "motivated_bishop"]
[Black "pKiLz5Rn9b"]
[Result "0-1"]
[WhiteElo "2247"]
[BlackElo "2471"]
[TimeControl "180+2"]
[EndTime "12:04:43 PST"]
[Termination "pKiLz5Rn9b won on time"]

1. d4 {[%clk 0:03:01.9]} 1... e6 {[%clk 0:03:00.2]} 2. c4 {[%clk 0:03:03.8]}
2... Nf6 {[%clk 0:03:01.3]} 3. Nc3 {[%clk 0:03:05]} 3... Bb4 {[%clk 0:03:01.7]}
4. Qc2 {[%clk 0:03:05.9]} 4... d5 {[%clk 0:03:02.8]} 5. cxd5 {[%clk 0:02:55.7]}
5... exd5 {[%clk 0:03:03.1]} 6. Bg5 {[%clk 0:02:32.6]} 6... h6 {[%clk
0:03:03.9]} 7. Bh4 {[%clk 0:02:33.6]} 7... c5 {[%clk 0:03:04.4]} 8. dxc5 {[%clk
0:02:20.6]} 8... g5 {[%clk 0:03:04.7]} 9. Bg3 {[%clk 0:02:21.5]} 9... Ne4 {[%clk
0:03:05.8]} 10. Nf3 {[%clk 0:02:22.8]} 10... Qa5 {[%clk 0:02:59.6]} 11. Rc1
{[%clk 0:02:21.2]} 11... Nc6 {[%clk 0:02:56.6]} 12. e3 {[%clk 0:02:11.6]} 12...
Bf5 {[%clk 0:02:46.9]} 13. Bd3 {[%clk 0:02:07.4]} 13... Nxc3 {[%clk 0:02:34.3]}
14. bxc3 {[%clk 0:01:16.4]} 14... Bxd3 {[%clk 0:02:34.8]} 15. Qxd3 {[%clk
0:01:16.9]} 15... Qxc5 {[%clk 0:02:34]} 16. O-O {[%clk 0:01:15.3]} 16... Ba5
{[%clk 0:02:33.4]} 17. c4 {[%clk 0:01:13.5]} 17... Rd8 {[%clk 0:02:34.1]} 18.
cxd5 {[%clk 0:00:56.2]} 18... Qxd5 {[%clk 0:02:34.6]} 19. Nd4 {[%clk 0:00:51.6]}
19... O-O {[%clk 0:02:28.2]} 20. Rfd1 {[%clk 0:00:38.1]} 20... Nxd4 {[%clk
0:02:28.7]} 21. exd4 {[%clk 0:00:38.7]} 21... Rc8 {[%clk 0:02:27]} 22. Rb1
{[%clk 0:00:34.8]} 22... Bb6 {[%clk 0:02:24.3]} 23. Be5 {[%clk 0:00:30.5]} 23...
Rc6 {[%clk 0:02:21.1]} 24. h4 {[%clk 0:00:29.9]} 24... Qc4 {[%clk 0:02:14.2]}
25. Qf5 {[%clk 0:00:24.5]} 25... Qe6 {[%clk 0:02:14.9]} 26. Qf3 {[%clk
0:00:22.8]} 26... Rc2 {[%clk 0:01:52.4]} 27. hxg5 {[%clk 0:00:22.4]} 27... hxg5
{[%clk 0:01:53]} 28. Qh5 {[%clk 0:00:17.7]} 28... f5 {[%clk 0:00:49.1]} 29.
Qxg5+ {[%clk 0:00:11.1]} 29... Kf7 {[%clk 0:00:50.3]} 30. Rb3 {[%clk 0:00:04.8]}
30... Rg8 {[%clk 0:00:48]} 31. Qh5+ {[%clk 0:00:05.7]} 31... Qg6 {[%clk
0:00:48.8]} 32. Qxg6+ {[%clk 0:00:07]} 32... Rxg6 {[%clk 0:00:50.7]} 33. Bg3
{[%clk 0:00:07.9]} 33... Ke6 {[%clk 0:00:41.6]} 34. Re3+ {[%clk 0:00:08.8]}
34... Kd7 {[%clk 0:00:42.3]} 35. Rf3 {[%clk 0:00:09.7]} 35... Rg5 {[%clk
0:00:38.7]} 36. Bf4 {[%clk 0:00:09.1]} 36... Rg4 {[%clk 0:00:38.9]} 37. Be3
{[%clk 0:00:10.2]} 37... Rxa2 {[%clk 0:00:33]} 38. Rxf5 {[%clk 0:00:10.3]} 38...
Rg7 {[%clk 0:00:29.4]} 39. g3 {[%clk 0:00:06.3]} 39... Bc7 {[%clk 0:00:27.7]}
40. Rb1 {[%clk 0:00:05.6]} 40... Bxg3 {[%clk 0:00:25.6]} 41. Rxb7+ {[%clk
0:00:03.2]} 41... Bc7+ {[%clk 0:00:27.4]} 42. Kf1 {[%clk 0:00:03.8]} 42... Kc6
{[%clk 0:00:29.3]} 43. Rbb5 {[%clk 0:00:03.6]} 43... Rh7 {[%clk 0:00:29.6]} 44.
Rbc5+ {[%clk 0:00:03.7]} 44... Kd7 {[%clk 0:00:31.1]} 45. Rh5 {[%clk 0:00:05]}
45... Rf7 {[%clk 0:00:27.6]} 46. Rcf5 {[%clk 0:00:05.5]} 46... Rxf5 {[%clk
0:00:26]} 47. Rxf5 {[%clk 0:00:07.4]} 47... a5 {[%clk 0:00:27.9]} 48. Rf7+
{[%clk 0:00:07.5]} 48... Kc8 {[%clk 0:00:27.2]} 49. d5 {[%clk 0:00:09]} 49... a4
{[%clk 0:00:28.4]} 50. Bc5 {[%clk 0:00:07.9]} 50... Rc2 {[%clk 0:00:27.3]} 51.
Bb4 {[%clk 0:00:05.2]} 51... Rc4 {[%clk 0:00:21.5]} 0-1

[Event "*** Titled Tuesday 3|2 Blitz"]
[Site "Chess.com"]
[Date "2015.12.01"]
[Round "5"]
[White "Anton_Demchenko"]
[Black "ChessWarrior7197"]
[Result "1-0"]
[WhiteElo "2662"]
[BlackElo "2455"]
[TimeControl "180+2"]
[EndTime "12:04:45 PST"]
[Termination "Anton_Demchenko won by resignation"]

1. e4 {[%clk 0:03:01.9]} 1... c5 {[%clk 0:03:00.2]} 2. Nf3 {[%clk 0:02:59.9]}
2... d6 {[%clk 0:03:01.1]} 3. d4 {[%clk 0:03:01.1]} 3... cxd4 {[%clk 0:03:02.1]}
4. Nxd4 {[%clk 0:03:03]} 4... Nf6 {[%clk 0:03:03.1]} 5. Nc3 {[%clk 0:03:04.2]}
5... a6 {[%clk 0:03:04.3]} 6. g3 {[%clk 0:03:04.7]} 6... e5 {[%clk 0:03:04.6]}
7. Nde2 {[%clk 0:03:05]} 7... Be7 {[%clk 0:03:05.8]} 8. Bg2 {[%clk 0:03:04.2]}
8... O-O {[%clk 0:03:07.3]} 9. O-O {[%clk 0:03:04.4]} 9... b5 {[%clk 0:03:08.5]}
10. Nd5 {[%clk 0:03:01]} 10... Bb7 {[%clk 0:02:56.1]} 11. Nec3 {[%clk
0:02:59.4]} 11... Nbd7 {[%clk 0:02:56]} 12. a4 {[%clk 0:02:48.7]} 12... Nxd5
{[%clk 0:02:52.3]} 13. Nxd5 {[%clk 0:02:49]} 13... Nf6 {[%clk 0:02:47.6]} 14.
Qd3 {[%clk 0:02:17.2]} 14... Nxd5 {[%clk 0:02:47.5]} 15. exd5 {[%clk 0:02:19.1]}
15... Qd7 {[%clk 0:02:44.8]} 16. Bd2 {[%clk 0:02:07.9]} 16... f5 {[%clk
0:02:44.9]} 17. Rfd1 {[%clk 0:01:50.7]} 17... Bf6 {[%clk 0:02:45]} 18. Qb3
{[%clk 0:01:50.3]} 18... e4 {[%clk 0:02:41.6]} 19. Bf4 {[%clk 0:01:25.7]} 19...
g5 {[%clk 0:02:32.3]} 20. Be3 {[%clk 0:01:26.6]} 20... h6 {[%clk 0:02:21.2]} 21.
axb5 {[%clk 0:01:11.6]} 21... axb5 {[%clk 0:02:21.4]} 22. Bh3 {[%clk 0:01:04.5]}
22... Be5 {[%clk 0:02:15.4]} 23. c3 {[%clk 0:01:03.3]} 23... Qe8 {[%clk
0:01:50.6]} 24. Rxa8 {[%clk 0:00:34.4]} 24... Bxa8 {[%clk 0:01:50.8]} 25. Qc2
{[%clk 0:00:32]} 25... Bb7 {[%clk 0:01:46.4]} 26. Bd4 {[%clk 0:00:28.4]} 26...
Bxd4 {[%clk 0:01:44.8]} 27. Rxd4 {[%clk 0:00:30.3]} 27... Qe5 {[%clk 0:01:44.6]}
28. Bg2 {[%clk 0:00:29.8]} 28... Bxd5 {[%clk 0:01:42.3]} 29. Qd2 {[%clk
0:00:26.5]} 29... Be6 {[%clk 0:01:32.1]} 30. Rxd6 {[%clk 0:00:24.8]} 30... Ra8
{[%clk 0:01:30.6]} 31. Rd8+ {[%clk 0:00:25.5]} 31... Rxd8 {[%clk 0:01:31.8]} 32.
Qxd8+ {[%clk 0:00:27.4]} 32... Kg7 {[%clk 0:01:33.5]} 33. Qe7+ {[%clk
0:00:28.3]} 33... Kg6 {[%clk 0:01:31.8]} 34. Bf1 {[%clk 0:00:27.9]} 34... e3
{[%clk 0:01:30.3]} 35. Bxb5 {[%clk 0:00:22.5]} 35... exf2+ {[%clk 0:01:07]} 36.
Kxf2 {[%clk 0:00:22.9]} 36... Qxb5 {[%clk 0:01:07]} 37. Qxe6+ {[%clk 0:00:23.4]}
37... Kg7 {[%clk 0:01:07.2]} 38. Qe7+ {[%clk 0:00:24.3]} 38... Kg6 {[%clk
0:01:07.8]} 39. Qe6+ {[%clk 0:00:23.4]} 39... Kg7 {[%clk 0:01:08.5]} 40. Qe2
{[%clk 0:00:25.1]} 40... Qb6+ {[%clk 0:01:07.3]} 41. Kf1 {[%clk 0:00:26.3]}
41... f4 {[%clk 0:01:05.4]} 42. gxf4 {[%clk 0:00:26.4]} 42... gxf4 {[%clk
0:01:06.4]} 43. Qg4+ {[%clk 0:00:27.3]} 43... Kh7 {[%clk 0:01:05.6]} 44. Qf5+
{[%clk 0:00:28.4]} 44... Kg7 {[%clk 0:01:05]} 45. Qe5+ {[%clk 0:00:29.7]} 45...
Kg6 {[%clk 0:00:57.3]} 46. b4 {[%clk 0:00:27.6]} 46... Qa6+ {[%clk 0:00:46.2]}
47. Kf2 {[%clk 0:00:28.8]} 47... Qa2+ {[%clk 0:00:45.8]} 48. Kf3 {[%clk
0:00:27.4]} 48... Qxh2 {[%clk 0:00:46.6]} 49. Qxf4 {[%clk 0:00:28.7]} 49... Qh1+
{[%clk 0:00:45.3]} 50. Kf2 {[%clk 0:00:27.2]} 50... Qb1 {[%clk 0:00:39.2]} 51.
Qd6+ {[%clk 0:00:24.9]} 51... Kg5 {[%clk 0:00:39.8]} 52. Qe5+ {[%clk 0:00:25.8]}
52... Kg6 {[%clk 0:00:40.3]} 53. Ke3 {[%clk 0:00:25.2]} 53... h5 {[%clk
0:00:40.2]} 54. Qe4+ {[%clk 0:00:25.1]} 54... Qxe4+ {[%clk 0:00:36.5]} 55. Kxe4
{[%clk 0:00:27]} 55... Kg5 {[%clk 0:00:38.1]} 56. Kf3 {[%clk 0:00:28.3]} 56...
Kf5 {[%clk 0:00:37.2]} 57. Kg3 {[%clk 0:00:29.6]} 57... Ke4 {[%clk 0:00:38]} 58.
Kh4 {[%clk 0:00:29.7]} 58... Kd5 {[%clk 0:00:38.6]} 59. Kxh5 {[%clk 0:00:30.7]}
59... Kc4 {[%clk 0:00:40.3]} 60. Kg6 {[%clk 0:00:32]} 1-0